[Event "GER-chT Youth Countries 2020"]
[Site "Berlin"]
[Date "2020.10.02"]
[Round "5"]
[White "Herrmann, Jakob"]
[Black "Grabs, Peter"]
[Result "0-1"]
[ECO "C00"]
[WhiteElo "1504"]
[BlackElo "1674"]
[Annotator "NA"]
[PlyCount "74"]
[EventDate "2020.09.30"]
[EventType "team-tourn"]
[EventRounds "7"]
[EventCountry "GER"]
[SourceTitle "playchess.com"]
[Source "ChessBase"]
[SourceQuality "1"]
[TimeControl "30/5400+30:0"]

1. e4 {[%emt 0:00:00]} e6 {[%emt 0:00:00]} 2. Nf3 {[%emt 0:00:00]} d5 {[%emt 0:00:00]} 3. e5 {[%emt 0:00:00]} c5 {[%emt 0:00:08]} 4. b4 {[%emt 0:00:00]} cxb4 {[%emt 0:00:53]} 5. a3 {[%emt 0:00:00]} bxa3 {[%emt 0:00:27]} 6. d4 {[%emt 0:00:02]} Nc6 {[%emt 0:00:33]} 7. c3 {[%emt 0:00:12]} f6 {[%emt 0:02:27]} 8. Bxa3 {[%emt 0:10:21]} Bxa3 {[%emt 0:00:48]} 9. Nxa3 {[%emt 0:00:04]} fxe5 {[%emt 0:00:33]} 10. dxe5 {[%emt 0:02:28]} Nge7 {[%emt 0:01:17]} 11. Bd3 {[%emt 0:01:39]} Nf5 {[%emt 0:02:23]} 12. Nb5 {[%emt 0:06:08]} O-O {[%emt 0:01:47]} 13. O-O {[%emt 0:00:16]} Nh4 {[%emt 0:06:49]} 14. Nfd4 {[%emt 0:05:20]} Nxd4 {[%emt 0:13:01]} 15. cxd4 {[%emt 0:00:35]} Qg5 {[%emt 0:02:08]} 16. g3 {[%emt 0:01:09]} Nf3+ {[%emt 0:01:21]} 17. Kh1 {[%emt 0:00:41]} Qh5 {[%emt 0:01:17]} 18. h4 {[%emt 0:01:03]} Qg4 19. Kg2 {[%emt 0:01:21]} Nxh4+ {[%emt 0:13:21]} 20. Kh2 {[%emt 0:01:02]} Qxd1 {[%emt 0:14:42]} 21. Raxd1 {[%emt 0:00:33]} Nf5 {[%emt 0:00:57]} 22. Rb1 {[%emt 0:12:22]} a6 {[%emt 0:01:30]} 23. Bxf5 {[%emt 0:00:26]} axb5 {[%emt 0:14:20]} 24. Bh3 {[%emt 0:02:07]} Bd7 {[%emt 0:00:52]} 25. Rbc1 {[%emt 0:02:38]} Rfc8 {[%emt 0:00:53]} 26. Kg1 {[%emt 0:07:21]} Rxc1 {[%emt 0:02:13]} 27. Rxc1 {[%emt 0:03:30]} Rc8 {[%emt 0:00:21]} 28. Ra1 {[%emt 0:00:18]} b4 {[%emt 0:02:17]} 29. Ra7 {[%emt 0:00:46]} Rc7 {[%emt 0:00:48]} 30. Ra2 {[%emt 0:01:12]} Kf7 {[%emt 0:02:26]} 31. Bf1 {[%emt 1:31:48]} b3 {[%emt 1:31:31]} 32. Rb2 {[%emt 0:00:08]} Ba4 {[%emt 0:00:22]} 33. Bd3 {[%emt 0:01:20]} b5 {[%emt 0:01:59]} 34. Kg2 {[%emt 0:01:14]} h6 {[%emt 0:00:40]} 35. Kg1 {[%emt 0:00:25]} Rc3 {[%emt 0:00:40]} 36. Rd2 {[%emt 0:01:23]} Rc2 {[%emt 0:02:00]} 37. Rd1 {[%emt 0:00:23]} b2 {[%emt 0:00:33]} 0-1

[Event "GER-chT Youth Countries 2020"]
[Site "Berlin"]
[Date "2020.10.02"]
[Round "5"]
[White "Werner, Florin"]
[Black "Schreidl, Michael"]
[Result "0-1"]
[ECO "C54"]
[WhiteElo "1481"]
[BlackElo "1640"]
[Annotator "NA"]
[PlyCount "78"]
[EventDate "2020.09.30"]
[EventType "team-tourn"]
[EventRounds "7"]
[EventCountry "GER"]
[SourceTitle "playchess.com"]
[Source "ChessBase"]
[SourceQuality "1"]
[TimeControl "30/5400+30:0"]

1. e4 {[%emt 0:00:00]} e5 {[%emt 0:00:00]} 2. Nf3 {[%emt 0:00:00]} Nc6 {[%emt 0:00:00]} 3. Bc4 {[%emt 0:00:00]} Bc5 {[%emt 0:00:00]} 4. c3 {[%emt 0:00:04]} Nf6 {[%emt 0:00:00]} 5. d4 {[%emt 0:00:09]} exd4 {[%emt 0:00:00]} 6. e5 {[%emt 0:00:06]} d5 {[%emt 0:00:01]} 7. Bb5 {[%emt 0:00:04]} Ne4 {[%emt 0:00:04]} 8. O-O {[%emt 0:00:17]} Bg4 {[%emt 0:01:23]} 9. cxd4 {[%emt 0:00:54]} Bb6 {[%emt 0:00:08]} 10. Nc3 {[%emt 0:00:23]} O-O {[%emt 0:00:58]} 11. Bxc6 {[%emt 0:00:34]} bxc6 {[%emt 0:00:06]} 12. Be3 {[%emt 0:00:37]} f5 {[%emt 0:02:25]} 13. h3 {[%emt 0:01:35]} Bh5 {[%emt 0:01:25]} 14. Re1 {[%emt 0:02:54]} f4 {[%emt 0:01:49]} 15. Bc1 {[%emt 0:00:14]} Ng5 {[%emt 0:02:46]} 16. Qd3 {[%emt 0:01:06]} Bxf3 {[%emt 0:01:44]} 17. gxf3 {[%emt 0:00:39]} Nxh3+ {[%emt 0:00:12]} 18. Kf1 {[%emt 0:00:03]} Qh4 {[%emt 0:02:04]} 19. Nd1 {[%emt 0:00:50]} Qg5 {[%emt 0:01:25]} 20. b3 {[%emt 0:02:11]} Qh5 {[%emt 0:03:08]} 21. Ke2 {[%emt 0:00:34]} Ng5 {[%emt 0:00:46]} 22. Nc3 {[%emt 0:00:48]} Ne6 {[%emt 0:00:39]} 23. Bb2 {[%emt 0:10:12]} Nxd4+ {[%emt 0:00:15]} 24. Kd2 {[%emt 0:00:07]} Nxf3+ {[%emt 0:00:05]} 25. Kc2 {[%emt 0:00:05]} Nxe1+ {[%emt 0:00:27]} 26. Rxe1 {[%emt 0:00:07]} Bxf2 {[%emt 0:00:30]} 27. Re2 {[%emt 0:01:08]} Be3 {[%emt 0:01:18]} 28. e6 {[%emt 0:07:03]} Rfe8 {[%emt 0:00:56]} 29. Nd1 {[%emt 0:02:00]} Rxe6 {[%emt 0:02:50]} 30. Rg2 {[%emt 0:01:32]} Rg6 {[%emt 0:01:42]} 31. Re2 {[%emt 1:30:39]} Re8 {[%emt 1:30:54]} 32. Nxe3 {[%emt 0:00:57]} fxe3 {[%emt 0:00:06]} 33. Rxe3 {[%emt 0:00:11]} Rg2+ {[%emt 0:00:20]} 34. Kc3 {[%emt 0:00:09]} Rxe3 {[%emt 0:02:46]} 35. Qxe3 {[%emt 0:00:18]} Re2 {[%emt 0:00:50]} 36. Qxa7 {[%emt 0:01:03]} Qf3+ {[%emt 0:00:25]} 37. Kb4 {[%emt 0:00:04]} Re4+ {[%emt 0:00:08]} 38. Ka5 {[%emt 0:01:20]} Qf8 {[%emt 0:01:48]} 39. Qxc7 {[%emt 0:02:53]} Re7 {[%emt 0:03:00]} 0-1

[Event "GER-chT Youth Countries 2020"]
[Site "Berlin"]
[Date "2020.10.02"]
[Round "5"]
[White "Margaryan, Susanna"]
[Black "Ottlik, Marie"]
[Result "1-0"]
[ECO "A48"]
[WhiteElo "1450"]
[BlackElo "1454"]
[Annotator "NA"]
[PlyCount "95"]
[EventDate "2020.09.30"]
[EventType "team-tourn"]
[EventRounds "7"]
[EventCountry "GER"]
[SourceTitle "playchess.com"]
[Source "ChessBase"]
[SourceQuality "1"]
[TimeControl "30/5400+30:0"]

1. d4 Nf6 2. Nf3 g6 3. Bf4 Bg7 4. e3 d6 5. c4 O-O 6. Nc3 c5 7. Be2 {[%emt 0:02:19]} Nbd7 {[%emt 0:04:28]} 8. O-O {[%emt 0:03:29]} a6 {[%emt 0:02:52]} 9. d5 {[%emt 0:03:06]} Rb8 {[%emt 0:06:22]} 10. a3 {[%emt 0:02:36]} Re8 {[%emt 0:04:35]} 11. Qd2 {[%emt 0:06:51]} Nf8 {[%emt 0:06:54]} 12. Rab1 {[%emt 0:07:11]} Bd7 {[%emt 0:02:07]} 13. b4 {[%emt 0:04:21]} cxb4 {[%emt 0:02:49]} 14. axb4 {[%emt 0:00:16]} b5 {[%emt 0:01:32]} 15. Nd4 {[%emt 0:09:13]} bxc4 {[%emt 0:02:37]} 16. Bxc4 {[%emt 0:00:23]} a5 {[%emt 0:02:03]} 17. b5 {[%emt 0:04:01]} Qc7 {[%emt 0:12:55]} 18. Nc6 {[%emt 0:05:19]} Bxc6 {[%emt 0:07:48]} 19. dxc6 {[%emt 0:02:13]} Ne6 {[%emt 0:03:39]} 20. Bxe6 {[%emt 0:02:15]} fxe6 {[%emt 0:01:17]} 21. Rfc1 {[%emt 0:01:44]} e5 {[%emt 0:05:59]} 22. Bg3 {[%emt 0:00:40]} Rb6 {[%emt 0:03:14]} 23. Na4 {[%emt 0:07:58]} Rbb8 {[%emt 0:02:13]} 24. b6 {[%emt 0:00:26]} Qc8 {[%emt 0:01:35]} 25. c7 {[%emt 0:00:29]} Rb7 {[%emt 0:00:52]} 26. Qxa5 {[%emt 0:06:43]} Nd7 {[%emt 0:04:44]} 27. Qd5+ {[%emt 0:08:14]} Kh8 {[%emt 0:02:41]} 28. Qa5 {[%emt 0:03:27]} e6 {[%emt 0:02:49]} 29. e4 {[%emt 0:00:24]} Bh6 {[%emt 0:00:48]} 30. Rd1 {[%emt 0:01:23]} Nf6 {[%emt 0:01:35]} 31. f3 {[%emt 1:31:47]} Be3+ {[%emt 1:31:06]} 32. Bf2 {[%emt 0:00:19]} Bxf2+ {[%emt 0:01:56]} 33. Kxf2 {[%emt 0:00:40]} Rf8 {[%emt 0:00:34]} 34. Kg1 {[%emt 0:00:26]} Ne8 {[%emt 0:02:12]} 35. Nc5 {[%emt 0:01:21]} Kg8 {[%emt 0:03:53]} 36. Nxb7 {[%emt 0:00:28]} Qxb7 {[%emt 0:00:09]} 37. Rdc1 {[%emt 0:00:41]} Nf6 {[%emt 0:00:44]} 38. Qa7 {[%emt 0:00:26]} Qxa7 {[%emt 0:01:48]} 39. bxa7 {[%emt 0:00:04]} Kg7 {[%emt 0:00:37]} 40. c8=Q {[%emt 0:00:17]} Rxc8 {[%emt 0:00:05]} 41. Rxc8 {[%emt 0:00:21]} d5 {[%emt 0:00:18]} 42. a8=Q {[%emt 0:00:17]} Kh6 {[%emt 0:00:33]} 43. Rc7 {[%emt 0:01:14]} d4 {[%emt 0:00:34]} 44. Qf8+ {[%emt 0:00:11]} Kg5 {[%emt 0:00:34]} 45. h4+ {[%emt 0:00:25]} Kf4 {[%emt 0:01:20]} 46. Re1 {[%emt 0:00:42]} d3 {[%emt 0:00:39]} 47. Qxf6+ {[%emt 0:00:09]} Kg3 {[%emt 0:00:11]} 48. Qg5# 1-0

[Event "GER-chT Youth Countries 2020"]
[Site "Berlin"]
[Date "2020.10.02"]
[Round "5"]
[White "Huppert, Anna"]
[Black "Zimmer, Tim"]
[Result "0-1"]
[ECO "C57"]
[WhiteElo "1440"]
[BlackElo "1025"]
[Annotator "NA"]
[PlyCount "62"]
[EventDate "2020.09.30"]
[EventType "team-tourn"]
[EventRounds "7"]
[EventCountry "GER"]
[SourceTitle "playchess.com"]
[Source "ChessBase"]
[SourceQuality "1"]
[TimeControl "30/5400+30:0"]

1. e4 {[%emt 0:00:00]} e5 {[%emt 0:00:00]} 2. Nf3 {[%emt 0:00:00]} Nc6 {[%emt 0:00:00]} 3. Bc4 {[%emt 0:00:00]} Nf6 {[%emt 0:00:00]} 4. Ng5 {[%emt 0:00:00]} d5 {[%emt 0:00:24]} 5. exd5 {[%emt 0:00:05]} Nd4 {[%emt 0:00:10]} 6. d6 {[%emt 0:04:55]} Qxd6 {[%emt 0:02:09]} 7. Nxf7 {[%emt 0:03:48]} Qc6 {[%emt 0:00:19]} 8. Nxe5 {[%emt 0:10:31]} Qe4+ {[%emt 0:03:32]} 9. Kf1 {[%emt 0:09:45]} Qxe5 {[%emt 0:01:46]} 10. c3 {[%emt 0:04:52]} Nc6 {[%emt 0:04:07]} 11. d4 {[%emt 0:00:41]} Qd6 {[%emt 0:00:14]} 12. Be3 {[%emt 0:11:31]} Be6 {[%emt 0:02:03]} 13. Nd2 {[%emt 0:08:01]} Be7 {[%emt 0:02:19]} 14. Ke2 {[%emt 0:11:18]} Ng4 {[%emt 0:03:12]} 15. Bxe6 {[%emt 0:01:32]} Qxe6 {[%emt 0:01:30]} 16. Nf3 {[%emt 0:02:14]} Qg6 {[%emt 0:04:27]} 17. Bf4 {[%emt 0:06:40]} Qe4+ {[%emt 0:02:23]} 18. Be3 {[%emt 0:00:34]} O-O-O 19. Re1 {[%emt 0:02:34]} Nxe3 {[%emt 0:03:12]} 20. fxe3 Rhe8 {[%emt 0:01:49]} 21. Kf1 {[%emt 0:03:06]} Rf8 {[%emt 0:07:54]} 22. Kg1 {[%emt 0:05:11]} Bh4 23. Nxh4 Qxh4 {[%emt 0:05:09]} 24. Rf1 {[%emt 0:01:33]} Qe4 {[%emt 0:01:02]} 25. Qd2 {[%emt 0:01:24]} Rde8 26. Rae1 {[%emt 0:00:53]} Rxf1+ {[%emt 0:01:35]} 27. Kxf1 {[%emt 0:02:04]} Rf8+ {[%emt 0:07:14]} 28. Kg1 {[%emt 0:05:38]} Ne7 29. Rf1 {[%emt 0:00:20]} Rxf1+ {[%emt 0:00:40]} 30. Kxf1 {[%emt 0:01:24]} Qb1+ 31. Kf2 {[%emt 1:30:26]} Qxa2 {[%emt 1:30:17]} 0-1

[Event "GER-chT Youth Countries 2020"]
[Site "Berlin"]
[Date "2020.10.02"]
[Round "5"]
[White "Avetyan, Manan"]
[Black "Schiewe, Nadin"]
[Result "0-1"]
[ECO "B01"]
[WhiteElo "1356"]
[BlackElo "1660"]
[Annotator "NA"]
[PlyCount "58"]
[EventDate "2020.09.30"]
[EventType "team-tourn"]
[EventRounds "7"]
[EventCountry "GER"]
[SourceTitle "playchess.com"]
[Source "ChessBase"]
[SourceQuality "1"]
[TimeControl "30/5400+30:0"]

1. e4 {[%emt 0:00:00]} d5 {[%emt 0:00:00]} 2. exd5 {[%emt 0:00:00]} Qxd5 {[%emt 0:00:00]} 3. Nc3 {[%emt 0:00:00]} Qa5 {[%emt 0:00:00]} 4. d4 {[%emt 0:00:14]} c6 {[%emt 0:00:00]} 5. Bd2 {[%emt 0:01:45]} Qc7 {[%emt 0:00:05]} 6. Nf3 {[%emt 0:00:38]} Nf6 {[%emt 0:00:10]} 7. h3 {[%emt 0:02:30]} Bf5 {[%emt 0:00:41]} 8. Be2 {[%emt 0:05:43]} e6 {[%emt 0:00:29]} 9. O-O {[%emt 0:00:58]} Bd6 {[%emt 0:00:23]} 10. Re1 {[%emt 0:05:50]} Nbd7 {[%emt 0:01:36]} 11. a3 {[%emt 0:07:59]} O-O {[%emt 0:00:57]} 12. Nh4 {[%emt 0:08:08]} Bg6 {[%emt 0:00:45]} 13. Bc4 {[%emt 0:04:15]} Rad8 {[%emt 0:03:18]} 14. Ne2 {[%emt 0:05:08]} e5 {[%emt 0:04:59]} 15. Nxg6 {[%emt 0:10:30]} hxg6 {[%emt 0:01:02]} 16. Bg5 Nb6 {[%emt 0:01:53]} 17. Bb3 {[%emt 0:24:24]} exd4 {[%emt 0:01:51]} 18. Qd3 {[%emt 0:00:50]} Kh7 {[%emt 0:03:36]} 19. Qf3 {[%emt 0:08:49]} Be5 {[%emt 0:01:31]} 20. Bf4 {[%emt 0:06:58]} Rfe8 {[%emt 0:04:51]} 21. Rad1 {[%emt 0:02:33]} c5 {[%emt 0:04:25]} 22. Bxe5 {[%emt 0:01:17]} Rxe5 {[%emt 0:01:41]} 23. Ng3 {[%emt 0:00:42]} Rde8 {[%emt 0:02:23]} 24. Kf1 {[%emt 0:00:26]} Qd7 {[%emt 0:08:29]} 25. Rxe5 {[%emt 0:00:28]} Rxe5 {[%emt 0:00:16]} 26. Re1 {[%emt 0:00:36]} Qb5+ {[%emt 0:02:29]} 27. Re2 {[%emt 0:01:16]} Rxe2 {[%emt 0:01:00]} 28. Nxe2 {[%emt 0:00:13]} Nc4 {[%emt 0:01:50]} 29. a4 {[%emt 0:00:54]} Nd2+ {[%emt 0:00:17]} 0-1

[Event "GER-chT Youth Countries 2020"]
[Site "Berlin"]
[Date "2020.10.02"]
[Round "5"]
[White "Bako, Evelin"]
[Black "Haug, Mara"]
[Result "0-1"]
[ECO "B37"]
[WhiteElo "1192"]
[BlackElo "1366"]
[Annotator "NA"]
[PlyCount "84"]
[EventDate "2020.09.30"]
[EventType "team-tourn"]
[EventRounds "7"]
[EventCountry "GER"]
[SourceTitle "playchess.com"]
[Source "ChessBase"]
[SourceQuality "1"]
[TimeControl "30/5400+30:0"]

1. e4 {[%emt 0:00:00]} c5 {[%emt 0:00:35]} 2. Nf3 {[%emt 0:00:00]} Nc6 {[%emt 0:00:12]} 3. d4 {[%emt 0:00:22]} cxd4 {[%emt 0:00:09]} 4. Nxd4 {[%emt 0:01:03]} g6 {[%emt 0:00:11]} 5. c4 {[%emt 0:00:29]} Bg7 {[%emt 0:00:08]} 6. Nc2 {[%emt 0:00:49]} Nf6 {[%emt 0:00:38]} 7. Nc3 {[%emt 0:01:04]} d6 {[%emt 0:01:19]} 8. Be2 {[%emt 0:00:59]} O-O {[%emt 0:02:56]} 9. Be3 {[%emt 0:01:10]} Re8 {[%emt 0:05:07]} 10. O-O {[%emt 0:01:08]} Bd7 {[%emt 0:04:50]} 11. Qd2 {[%emt 0:01:51]} Ng4 {[%emt 0:03:30]} 12. Bxg4 {[%emt 0:01:01]} Bxg4 {[%emt 0:00:08]} 13. f3 {[%emt 0:01:08]} Bd7 {[%emt 0:01:00]} 14. Rfd1 {[%emt 0:01:34]} Rc8 {[%emt 0:08:39]} 15. Rac1 {[%emt 0:03:25]} Qa5 {[%emt 0:06:47]} 16. Na3 {[%emt 0:08:40]} Qb4 {[%emt 0:05:45]} 17. Rc2 {[%emt 0:04:05]} Ne5 {[%emt 0:09:17]} 18. Nd5 {[%emt 0:01:31]} Qxd2 {[%emt 0:03:41]} 19. Rdxd2 {[%emt 0:00:34]} b6 {[%emt 0:10:41]} 20. b3 {[%emt 0:03:03]} Rc6 {[%emt 0:09:25]} 21. Nb5 {[%emt 0:04:59]} e6 {[%emt 0:11:46]} 22. Nxa7 {[%emt 0:01:13]} exd5 {[%emt 0:00:33]} 23. Nxc6 {[%emt 0:00:12]} Nxc6 {[%emt 0:00:31]} 24. cxd5 {[%emt 0:00:25]} Nb4 {[%emt 0:04:57]} 25. Rc4 {[%emt 0:05:15]} Na6 {[%emt 0:00:04]} 26. Bxb6 {[%emt 0:01:07]} Bb5 {[%emt 0:00:48]} 27. Rcc2 {[%emt 0:02:17]} Nb4 {[%emt 0:00:10]} 28. Rc7 {[%emt 0:00:58]} Ra8 {[%emt 0:01:37]} 29. a4 {[%emt 0:04:38]} Ba6 {[%emt 0:01:20]} 30. Ra7 {[%emt 0:04:23]} Rc8 {[%emt 0:01:42]} 31. Rc7 {[%emt 1:31:03]} Rb8 {[%emt 1:31:04]} 32. Ba5 {[%emt 0:01:30]} Bh6 {[%emt 0:01:16]} 33. Rd1 {[%emt 0:06:18]} Nd3 {[%emt 0:00:29]} 34. h3 {[%emt 0:02:52]} Rxb3 {[%emt 0:00:32]} 35. Bd2 {[%emt 0:05:34]} Nf4 {[%emt 0:01:29]} 36. Kh2 {[%emt 0:10:33]} Rb2 {[%emt 0:00:29]} 37. Bxf4 {[%emt 0:02:17]} Bxf4+ {[%emt 0:00:07]} 38. Kg1 {[%emt 0:01:17]} Be3+ {[%emt 0:00:41]} 39. Kh2 {[%emt 0:01:00]} Be2 {[%emt 0:00:11]} 40. Rc8+ {[%emt 0:02:07]} Kg7 {[%emt 0:00:04]} 41. Ra1 {[%emt 0:00:55]} Bxf3 {[%emt 0:00:15]} 42. Kg3 {[%emt 0:06:04]} Bxe4 {[%emt 0:01:26]} 0-1

[Event "GER-chT Youth Countries 2020"]
[Site "Berlin"]
[Date "2020.10.02"]
[Round "5"]
[White "Reich, Elisabeth"]
[Black "Eichhorn, Mathilda"]
[Result "0-1"]
[ECO "C00"]
[WhiteElo "1128"]
[BlackElo "1532"]
[Annotator "NA"]
[PlyCount "186"]
[EventDate "2020.09.30"]
[EventType "team-tourn"]
[EventRounds "7"]
[EventCountry "GER"]
[SourceTitle "playchess.com"]
[Source "ChessBase"]
[SourceQuality "1"]
[TimeControl "30/5400+30:0"]

1. e4 {[%emt 0:00:00]} e6 {[%emt 0:00:00]} 2. d3 {[%emt 0:00:00]} d5 {[%emt 0:00:00]} 3. Nd2 {[%emt 0:00:00]} Nf6 {[%emt 0:00:08]} 4. Ngf3 {[%emt 0:00:06]} c5 {[%emt 0:00:13]} 5. g3 {[%emt 0:00:05]} Nc6 {[%emt 0:00:46]} 6. Bg2 {[%emt 0:00:09]} Qc7 {[%emt 0:02:08]} 7. O-O {[%emt 0:00:36]} Be7 {[%emt 0:00:29]} 8. c3 {[%emt 0:01:06]} O-O {[%emt 0:00:26]} 9. Re1 {[%emt 0:00:23]} b6 {[%emt 0:00:54]} 10. e5 {[%emt 0:00:42]} Nd7 {[%emt 0:00:20]} 11. d4 {[%emt 0:00:20]} Ba6 {[%emt 0:03:48]} 12. Nf1 Na5 {[%emt 0:01:23]} 13. Ng5 {[%emt 0:04:22]} h6 {[%emt 0:01:08]} 14. Nf3 {[%emt 0:00:33]} Nc6 {[%emt 0:00:20]} 15. Ne3 {[%emt 0:00:43]} cxd4 {[%emt 0:00:25]} 16. cxd4 {[%emt 0:00:13]} Rac8 {[%emt 0:00:31]} 17. Bd2 {[%emt 0:01:07]} Qb7 {[%emt 0:02:12]} 18. a3 {[%emt 0:00:45]} Rfe8 {[%emt 0:07:24]} 19. b4 {[%emt 0:01:00]} b5 {[%emt 0:00:32]} 20. Rc1 {[%emt 0:02:05]} Qb6 {[%emt 0:02:38]} 21. Bc3 {[%emt 0:01:49]} Bb7 {[%emt 0:00:30]} 22. Bb2 {[%emt 0:01:41]} a5 {[%emt 0:00:28]} 23. bxa5 {[%emt 0:01:08]} Qxa5 {[%emt 0:00:35]} 24. Ra1 {[%emt 0:00:52]} Rb8 {[%emt 0:01:30]} 25. Qb3 {[%emt 0:02:05]} Ba6 {[%emt 0:02:23]} 26. Bc3 {[%emt 0:00:49]} Qc7 {[%emt 0:00:45]} 27. Rec1 {[%emt 0:00:37]} Qb6 {[%emt 0:03:14]} 28. Nc2 {[%emt 0:03:22]} Rec8 {[%emt 0:04:44]} 29. Nb4 {[%emt 0:00:56]} Na5 {[%emt 0:04:08]} 30. Qb2 {[%emt 0:02:10]} Nc4 {[%emt 0:00:38]} 31. Qb3 {[%emt 1:30:43]} Qb7 {[%emt 1:32:53]} 32. Nxa6 {[%emt 0:00:41]} Qxa6 {[%emt 0:00:29]} 33. Bb4 {[%emt 0:01:09]} Bxb4 {[%emt 0:01:56]} 34. Qxb4 {[%emt 0:01:41]} Ra8 {[%emt 0:08:48]} 35. Nd2 {[%emt 0:01:15]} Ndb6 {[%emt 0:01:01]} 36. Nxc4 {[%emt 0:00:50]} Nxc4 {[%emt 0:01:47]} 37. a4 {[%emt 0:01:20]} bxa4 {[%emt 0:01:21]} 38. Bf1 {[%emt 0:01:31]} Qb6 {[%emt 0:02:42]} 39. Qxb6 {[%emt 0:01:54]} Nxb6 40. Rxc8+ Rxc8 41. Bb5 {[%emt 0:01:27]} Ra8 {[%emt 0:01:07]} 42. Bc6 {[%emt 0:00:28]} Ra7 {[%emt 0:00:44]} 43. Bb5 {[%emt 0:01:34]} Rc7 {[%emt 0:00:44]} 44. Bxa4 {[%emt 0:00:51]} Ra7 {[%emt 0:00:08]} 45. Rb1 {[%emt 0:00:30]} Nxa4 {[%emt 0:00:06]} 46. Rb8+ {[%emt 0:00:13]} Kh7 {[%emt 0:00:08]} 47. Rb4 {[%emt 0:00:42]} Nc3 {[%emt 0:00:22]} 48. f4 {[%emt 0:00:32]} Ra4 {[%emt 0:00:23]} 49. Rxa4 {[%emt 0:00:18]} Nxa4 {[%emt 0:00:05]} 50. Kf2 {[%emt 0:00:29]} Kg6 {[%emt 0:00:06]} 51. h3 {[%emt 0:00:26]} Nc3 {[%emt 0:00:27]} 52. g4 {[%emt 0:00:56]} Ne4+ {[%emt 0:00:27]} 53. Kf3 {[%emt 0:00:36]} h5 {[%emt 0:02:16]} 54. g5 {[%emt 0:00:39]} Nd2+ {[%emt 0:00:20]} 55. Ke3 {[%emt 0:00:43]} Nb3 {[%emt 0:00:43]} 56. Kd3 {[%emt 0:00:27]} Kf5 {[%emt 0:00:15]} 57. Ke3 {[%emt 0:00:26]} h4 {[%emt 0:00:21]} 58. Kf3 {[%emt 0:00:28]} Nxd4+ {[%emt 0:00:14]} 59. Ke3 {[%emt 0:00:12]} Nc2+ {[%emt 0:00:14]} 60. Kf3 {[%emt 0:00:12]} d4 {[%emt 0:00:46]} 61. Ke2 {[%emt 1:30:33]} Kxf4 {[%emt 1:30:24]} 62. Kd3 {[%emt 0:00:17]} Ne1+ {[%emt 0:00:26]} 63. Kxd4 {[%emt 0:00:21]} Kxg5 {[%emt 0:00:12]} 64. Ke4 {[%emt 0:00:08]} g6 {[%emt 0:00:40]} 65. Ke3 {[%emt 0:00:06]} Kf5 {[%emt 0:00:29]} 66. Ke2 {[%emt 0:00:22]} Ng2 {[%emt 0:00:08]} 67. Kf3 {[%emt 0:00:19]} Nf4 {[%emt 0:00:10]} 68. Ke3 {[%emt 0:00:30]} Kxe5 {[%emt 0:00:13]} 69. Kf3 {[%emt 0:00:08]} Nxh3 {[%emt 0:00:07]} 70. Kg4 {[%emt 0:00:26]} Nf2+ {[%emt 0:00:24]} 71. Kxh4 {[%emt 0:00:10]} f5 {[%emt 0:00:13]} 72. Kg3 {[%emt 0:00:09]} Ne4+ {[%emt 0:00:11]} 73. Kf3 {[%emt 0:00:11]} f4 {[%emt 0:00:09]} 74. Kg4 {[%emt 0:00:09]} g5 {[%emt 0:00:17]} 75. Kf3 {[%emt 0:00:07]} Kf5 {[%emt 0:00:40]} 76. Kg2 {[%emt 0:00:16]} Kg4 {[%emt 0:00:07]} 77. Kf1 {[%emt 0:00:13]} Kg3 {[%emt 0:00:14]} 78. Kg1 {[%emt 0:00:10]} Nc5 {[%emt 0:00:13]} 79. Kf1 {[%emt 0:00:09]} f3 {[%emt 0:00:19]} 80. Kg1 {[%emt 0:00:16]} f2+ {[%emt 0:00:23]} 81. Kf1 {[%emt 0:00:07]} g4 {[%emt 0:00:10]} 82. Ke2 {[%emt 0:00:04]} Kg2 {[%emt 0:00:06]} 83. Ke3 {[%emt 0:00:26]} f1=Q {[%emt 0:00:21]} 84. Kd4 {[%emt 0:00:05]} Qf4+ {[%emt 0:01:06]} 85. Kxc5 {[%emt 0:00:11]} Qd2 {[%emt 0:00:13]} 86. Kc4 {[%emt 0:00:04]} e5 {[%emt 0:00:20]} 87. Kc5 {[%emt 0:00:11]} e4 {[%emt 0:00:12]} 88. Kc4 {[%emt 0:00:16]} e3 {[%emt 0:00:04]} 89. Kc5 {[%emt 0:00:19]} e2 {[%emt 0:00:05]} 90. Kc4 {[%emt 0:00:07]} e1=Q {[%emt 0:00:13]} 91. Kc5 {[%emt 1:30:09]} Qec1+ {[%emt 1:30:07]} 92. Kb5 {[%emt 0:00:13]} Qdb2+ {[%emt 0:00:06]} 93. Ka4 {[%emt 0:00:10]} Qca1# 0-1

[Event "GER-chT Youth Countries 2020"]
[Site "Berlin"]
[Date "2020.10.02"]
[Round "5"]
[White "Richter, Johanna"]
[Black "Fischer, Juliane"]
[Result "0-1"]
[ECO "D61"]
[WhiteElo "1107"]
[BlackElo "1509"]
[Annotator "NA"]
[PlyCount "101"]
[EventDate "2020.09.30"]
[EventType "team-tourn"]
[EventRounds "7"]
[EventCountry "GER"]
[SourceTitle "playchess.com"]
[Source "ChessBase"]
[SourceQuality "1"]
[TimeControl "30/5400+30:0"]

1. d4 {[%emt 0:00:00]} d5 {[%emt 0:00:00]} 2. c4 {[%emt 0:00:00]} e6 {[%emt 0:00:00]} 3. Nc3 {[%emt 0:00:00]} Nf6 {[%emt 0:00:07]} 4. Bg5 {[%emt 0:00:03]} Be7 {[%emt 0:00:20]} 5. Nf3 {[%emt 0:00:25]} O-O {[%emt 0:00:59]} 6. e3 {[%emt 0:03:43]} Nbd7 {[%emt 0:03:08]} 7. Qc2 {[%emt 0:00:42]} dxc4 {[%emt 0:00:12]} 8. Bxc4 {[%emt 0:02:18]} a6 {[%emt 0:04:03]} 9. a4 {[%emt 0:04:47]} c5 {[%emt 0:07:52]} 10. O-O {[%emt 0:03:14]} Nb6 {[%emt 0:01:18]} 11. Bb3 {[%emt 0:00:30]} cxd4 {[%emt 0:01:02]} 12. Nxd4 {[%emt 0:00:44]} Bd7 {[%emt 0:01:22]} 13. Rfd1 {[%emt 0:03:39]} Qc7 {[%emt 0:02:00]} 14. Rac1 {[%emt 0:07:06]} Rac8 {[%emt 0:00:30]} 15. Qd2 {[%emt 0:00:30]} Bc6 {[%emt 0:00:30]} 16. f3 {[%emt 0:00:30]} Rfd8 {[%emt 0:09:16]} 17. Qc2 {[%emt 0:21:10]} Nbd5 {[%emt 0:15:14]} 18. Qe2 {[%emt 0:15:15]} Qa5 19. Nxc6 {[%emt 0:00:30]} Nxc3 {[%emt 0:17:46]} 20. Nxe7+ {[%emt 0:02:15]} Kf8 {[%emt 0:00:12]} 21. Rxd8+ {[%emt 0:04:01]} Rxd8 {[%emt 0:00:40]} 22. Rxc3 {[%emt 0:00:30]} Qxg5 23. Rc7 {[%emt 0:05:36]} Rd7 {[%emt 0:00:50]} 24. Rxd7 {[%emt 0:01:42]} Nxd7 {[%emt 0:00:18]} 25. Nc8 {[%emt 0:00:59]} Qc5 {[%emt 0:00:35]} 26. Kf2 {[%emt 0:02:42]} Qxc8 {[%emt 0:00:30]} 27. Qc4 {[%emt 0:00:30]} Qxc4 {[%emt 0:00:46]} 28. Bxc4 {[%emt 0:00:16]} Ne5 {[%emt 0:02:52]} 29. b3 {[%emt 0:01:15]} Ke7 {[%emt 0:00:10]} 30. f4 {[%emt 0:00:30]} Nxc4 {[%emt 0:00:30]} 31. bxc4 {[%emt 1:30:10]} Kd6 {[%emt 1:30:08]} 32. Ke2 {[%emt 0:00:09]} Kc5 {[%emt 0:00:04]} 33. Kd3 {[%emt 0:00:30]} Kb4 {[%emt 0:00:30]} 34. Kd4 {[%emt 0:01:14]} Kxa4 {[%emt 0:00:13]} 35. Kc5 {[%emt 0:00:06]} b5 {[%emt 0:00:14]} 36. g4 {[%emt 0:02:05]} Kb3 {[%emt 0:00:49]} 37. cxb5 {[%emt 0:00:31]} axb5 {[%emt 0:00:05]} 38. Kxb5 {[%emt 0:00:04]} Kc3 {[%emt 0:00:08]} 39. Kc5 {[%emt 0:00:04]} Kd3 {[%emt 0:00:10]} 40. Kd6 {[%emt 0:00:04]} Kxe3 41. f5 {[%emt 0:01:05]} exf5 {[%emt 0:00:18]} 42. gxf5 {[%emt 0:00:30]} Kf4 {[%emt 0:00:12]} 43. Ke7 {[%emt 0:00:03]} Kxf5 {[%emt 0:00:32]} 44. Kxf7 {[%emt 0:00:08]} g5 {[%emt 0:00:00]} 45. h3 {[%emt 0:01:20]} h5 {[%emt 0:00:15]} 46. Ke7 {[%emt 0:00:09]} g4 {[%emt 0:00:30]} 47. h4 {[%emt 0:00:30]} g3 {[%emt 0:00:30]} 48. Kf7 {[%emt 0:00:30]} g2 {[%emt 0:00:00]} 49. Kg7 {[%emt 0:01:02]} g1=Q+ {[%emt 0:00:00]} 50. Kh8 {[%emt 0:00:30]} Kf6 {[%emt 0:00:03]} 51. Kh7 {[%emt 0:00:21]} 0-1